[Event "4NCL 2019-20"]
[Site "Daventry"]
[Date "2020.01.12"]
[Round "4"]
[White "Eames, Robert S"]
[Black "Dicu, Dan-Alexandru"]
[Result "1/2-1/2"]
[ECO "B38"]
[WhiteElo "2150"]
[BlackElo "2106"]
[Annotator "RC"]
[PlyCount "197"]
[EventDate "2020.01.11"]
[EventCountry "ENG"]
[SourceTitle "playchess.com"]
[Source "ChessBase"]
[SourceQuality "1"]
[TimeControl "40/6000:3000+30"]

1. e4 {[%emt 0:04:19]} c5 {[%emt 0:00:00]} 2. Nf3 {[%emt 0:00:36]} Nc6 {[%emt 0:00:00]} 3. d4 {[%emt 0:00:00]} cxd4 {[%emt 0:00:00]} 4. Nxd4 {[%emt 0:00:00]} g6 {[%emt 0:00:00]} 5. c4 {[%emt 0:00:00]} Bg7 {[%emt 0:00:00]} 6. Be3 {[%emt 0:00:00]} Nf6 {[%emt 0:00:00]} 7. Nc3 {[%emt 0:00:00]} O-O {[%emt 0:00:00]} 8. Be2 {[%emt 0:00:00]} d6 {[%emt 0:00:00]} 9. O-O {[%emt 0:00:00]} Bd7 {[%emt 0:00:00]} 10. Qd2 {[%emt 0:00:01]} Nxd4 {[%emt 0:00:00]} 11. Bxd4 {[%emt 0:00:00]} Bc6 {[%emt 0:00:00]} 12. f3 {[%emt 0:00:00]} a5 {[%emt 0:00:00]} 13. b3 {[%emt 0:00:00]} Nd7 {[%emt 0:00:00]} 14. Be3 {[%emt 0:01:31]} Nc5 {[%emt 0:00:00]} 15. Rab1 {[%emt 0:00:00]} e6 {[%emt 0:00:00]} 16. Rfc1 {[%emt 0:04:29]} Be5 {[%emt 0:00:00]} 17. Bf1 {[%emt 0:03:12]} f5 {[%emt 0:01:31]} 18. exf5 {[%emt 0:02:35]} Rxf5 {[%emt 0:00:02]} 19. Ne2 {[%emt 0:02:44]} Be4 {[%emt 0:36:36]} 20. Bxc5 {[%emt 0:10:13]} Bxb1 {[%emt 0:00:23]} 21. Bd4 {[%emt 0:02:44]} Bxa2 {[%emt 0:02:48]} 22. Qxa2 {[%emt 0:01:37]} Bxd4+ {[%emt 0:07:45]} 23. Nxd4 {[%emt 0:00:00]} Re5 {[%emt 0:01:05]} 24. Rd1 {[%emt 0:02:43]} Qb6 {[%emt 0:00:53]} 25. Qf2 {[%emt 0:02:38]} a4 {[%emt 0:03:16]} 26. bxa4 {[%emt 0:00:10]} Rxa4 {[%emt 0:00:07]} 27. Bd3 {[%emt 0:05:33]} Ra3 {[%emt 0:06:41]} 28. Nb5 {[%emt 0:12:59]} Qxf2+ {[%emt 0:00:27]} 29. Kxf2 {[%emt 0:00:00]} Ra2+ {[%emt 0:00:00]} 30. Kf1 {[%emt 0:01:37]} Rg5 {[%emt 0:05:17]} 31. Be2 {[%emt 0:02:23]} Re5 {[%emt 0:01:08]} 32. Nc3 {[%emt 0:01:35]} Rc2 {[%emt 0:00:48]} 33. Rd3 {[%emt 0:00:00]} d5 {[%emt 0:00:18]} 34. cxd5 {[%emt 0:02:30]} exd5 {[%emt 0:00:00]} 35. Bd1 {[%emt 0:01:06]} Rb2 {[%emt 0:01:35]} 36. Nxd5 {[%emt 0:00:00]} b5 {[%emt 0:00:00]} 37. f4 {[%emt 0:01:12]} Re6 {[%emt 0:00:31]} 38. g4 {[%emt 0:04:37]} Rxh2 {[%emt 0:01:43]} 39. g5 {[%emt 0:00:34]} Kg7 {[%emt 0:04:27]} 40. Ne3 {[%emt 0:04:56]} Re4 {[%emt 0:06:53]} 41. Ng2 {[%emt 0:56:04]} Rh1+ {[%emt 0:50:22]} 42. Kf2 {[%emt 0:00:14]} Re7 {[%emt 0:02:14]} 43. Bf3 {[%emt 0:02:47]} Rb1 {[%emt 0:02:09]} 44. Ne3 {[%emt 0:00:42]} Rb2+ {[%emt 0:00:07]} 45. Kg3 {[%emt 0:00:52]} h6 {[%emt 0:01:31]} 46. gxh6+ {[%emt 0:04:17]} Kxh6 {[%emt 0:00:06]} 47. Ng4+ {[%emt 0:00:09]} Kg7 {[%emt 0:00:10]} 48. Rd6 {[%emt 0:01:33]} Re1 {[%emt 0:04:03]} 49. Kh4 {[%emt 0:07:43]} Rf1 {[%emt 0:00:56]} 50. Ne5 {[%emt 0:00:35]} Rg1 {[%emt 0:03:46]} 51. Rd7+ {[%emt 0:00:00]} Kf6 {[%emt 0:00:00]} 52. Rf7+ {[%emt 0:00:00]} Ke6 {[%emt 0:00:00]} 53. Bg4+ {[%emt 0:00:00]} Kd5 {[%emt 0:00:00]} 54. Nxg6 {[%emt 0:00:00]} b4 {[%emt 0:00:00]} 55. Rd7+ {[%emt 0:00:00]} Ke4 {[%emt 0:00:00]} 56. Re7+ {[%emt 0:00:00]} Kd4 {[%emt 0:00:00]} 57. Ne5 {[%emt 0:00:00]} Rh1+ {[%emt 0:00:00]} 58. Kg5 {[%emt 0:00:00]} b3 {[%emt 0:00:00]} 59. Rd7+ {[%emt 0:00:00]} Kc3 {[%emt 0:00:00]} 60. Rc7+ {[%emt 0:00:00]} Kd4 {[%emt 0:00:00]} 61. Nf3+ {[%emt 0:00:00]} Kd5 {[%emt 0:00:00]} 62. Rd7+ {[%emt 0:00:00]} Kc5 {[%emt 0:00:00]} 63. Nd2 {[%emt 0:00:00]} Rh2 {[%emt 0:00:00]} 64. Ne4+ {[%emt 0:00:00]} Kc6 {[%emt 0:00:00]} 65. Rd3 {[%emt 0:00:00]} Rb1 {[%emt 0:00:00]} 66. Nd2 {[%emt 0:00:00]} Rg1 {[%emt 0:00:00]} 67. Nf3 {[%emt 0:00:00]} b2 {[%emt 0:00:00]} 68. Rb3 {[%emt 0:00:00]} Rg3 {[%emt 0:00:00]} 69. Kf5 {[%emt 0:00:00]} Kc7 {[%emt 0:00:00]} 70. Rb4 {[%emt 0:05:04]} Rh8 {[%emt 0:00:00]} 71. Rxb2 {[%emt 0:02:09]} Rf8+ {[%emt 0:00:00]} 72. Ke6 {[%emt 0:00:18]} Rxg4 {[%emt 0:00:00]} 73. Ne5 {[%emt 0:01:03]} Rgxf4 {[%emt 0:00:00]} 74. Rc2+ {[%emt 0:00:32]} Kb7 {[%emt 0:00:00]} 75. Rb2+ {[%emt 0:01:14]} Ka6 {[%emt 0:00:00]} 76. Nd7 {[%emt 0:00:30]} Re8+ {[%emt 0:00:00]} 77. Kd5 {[%emt 0:00:35]} Rd8 {[%emt 0:00:00]} 78. Ke5 {[%emt 0:01:05]} Rc4 {[%emt 0:00:00]} 79. Nf6 {[%emt 0:01:15]} Rc5+ {[%emt 0:00:00]} 80. Ke6 {[%emt 0:00:20]} Rb5 {[%emt 0:00:00]} 81. Ra2+ {[%emt 0:01:12]} Kb7 {[%emt 0:00:00]} 82. Rh2 {[%emt 0:00:24]} Kc6 {[%emt 0:00:00]} 83. Rc2+ {[%emt 0:00:15]} Rc5 {[%emt 0:00:00]} 84. Rxc5+ {[%emt 0:00:47]} Kxc5 {[%emt 0:00:00]} 85. Ke5 {[%emt 0:00:12]} Rd1 {[%emt 0:00:00]} 86. Ne4+ {[%emt 0:00:13]} Kc4 {[%emt 0:00:00]} 87. Nd6+ {[%emt 0:00:09]} Kc5 {[%emt 0:00:00]} 88. Ne4+ {[%emt 0:00:11]} Kc6 {[%emt 0:00:00]} 89. Nf6 {[%emt 0:00:24]} Rd8 {[%emt 0:00:00]} 90. Ne4 {[%emt 0:00:18]} Rd5+ {[%emt 0:00:00]} 91. Ke6 {[%emt 0:00:17]} Ra5 {[%emt 0:00:00]} 92. Nf6 {[%emt 0:00:15]} Ra1 {[%emt 0:00:00]} 93. Ke5 {[%emt 0:00:17]} Re1+ {[%emt 0:00:00]} 94. Kd4 {[%emt 0:00:17]} Kd6 {[%emt 0:00:00]} 95. Ne4+ {[%emt 0:00:13]} Ke6 {[%emt 0:00:00]} 96. Nc5+ {[%emt 0:00:19]} Kf5 {[%emt 0:00:00]} 97. Nd3 {[%emt 0:00:18]} Rd1 {[%emt 0:00:00]} 98. Ke3 {[%emt 0:00:12]} Rxd3+ {[%emt 0:00:00]} 99. Kxd3 {[%emt 0:00:42]} 1/2-1/2

[Event "4NCL 2019-20"]
[Site "Daventry"]
[Date "2020.01.12"]
[Round "4"]
[White "Quinn, John M"]
[Black "Gallagher, Daniel GH"]
[Result "0-1"]
[ECO "E90"]
[WhiteElo "2139"]
[BlackElo "2171"]
[Annotator "ChessBase"]
[PlyCount "50"]
[EventDate "2020.01.11"]
[EventCountry "ENG"]
[SourceTitle "playchess.com"]
[Source "ChessBase"]
[SourceQuality "1"]
[TimeControl "40/6000:3000+30"]

1. d4 {[%emt 0:00:00]} Nf6 {[%emt 0:00:00]} 2. c4 {[%emt 0:00:00]} g6 {[%emt 0:00:00]} 3. Nc3 {[%emt 0:00:00]} Bg7 {[%emt 0:00:00]} 4. e4 {[%emt 0:00:00]} d6 {[%emt 0:00:00]} 5. Nf3 {[%emt 0:00:00]} O-O {[%emt 0:00:00]} 6. h3 {[%emt 0:00:00]} Na6 {[%emt 0:00:00]} 7. Be3 {[%emt 0:00:00]} e5 {[%emt 0:00:00]} 8. d5 {[%emt 0:00:00]} Nh5 {[%emt 0:00:00]} 9. g3 {[%emt 0:04:15]} f5 {[%emt 0:00:00]} 10. exf5 {[%emt 0:03:30]} gxf5 {[%emt 0:00:00]} 11. Nh4 {[%emt 0:00:00]} Nf6 {[%emt 0:13:00]} 12. Ng2 {[%emt 0:14:08]} Nc5 {[%emt 0:05:39]} 13. Qc2 {[%emt 0:11:57]} c6 {[%emt 0:12:45]} 14. O-O-O {[%emt 0:06:07]} Nce4 {[%emt 0:11:49]} 15. Nxe4 Nxe4 {[%emt 0:00:00]} 16. dxc6 bxc6 {[%emt 0:00:00]} 17. Bd3 {[%emt 0:10:52]} Be6 {[%emt 0:29:32]} 18. g4 {[%emt 0:03:38]} d5 {[%emt 0:00:00]} 19. gxf5 Bxf5 {[%emt 0:00:00]} 20. Rhg1 {[%emt 0:19:50]} Kh8 {[%emt 0:09:04]} 21. f3 {[%emt 0:10:45]} Nd6 {[%emt 0:00:15]} 22. Bc5 {[%emt 0:02:49]} Bxd3 {[%emt 0:03:35]} 23. Qxd3 {[%emt 0:00:27]} Nxc4 {[%emt 0:00:00]} 24. Bxf8 {[%emt 0:00:00]} Qxf8 {[%emt 0:00:00]} 25. b3 {[%emt 0:01:28]} Qa3+ {[%emt 0:00:00]} 0-1

[Event "4NCL 2019-20"]
[Site "Daventry"]
[Date "2020.01.12"]
[Round "4"]
[White "Walton, Alan J"]
[Black "Jackson, Sheila"]
[Result "0-1"]
[ECO "A43"]
[WhiteElo "2123"]
[BlackElo "2064"]
[Annotator "ChessBase"]
[PlyCount "100"]
[EventDate "2020.01.11"]
[EventCountry "ENG"]
[SourceTitle "playchess.com"]
[Source "ChessBase"]
[SourceQuality "1"]
[TimeControl "40/6000:3000+30"]

1. d4 {[%emt 0:00:00]} c5 {[%emt 0:00:00]} 2. d5 {[%emt 0:00:00]} g6 {[%emt 0:00:00]} 3. Nc3 {[%emt 0:00:00]} d6 {[%emt 0:00:00]} 4. e4 {[%emt 0:00:00]} Bg7 {[%emt 0:00:04]} 5. Nf3 {[%emt 0:00:00]} a6 {[%emt 0:00:00]} 6. a4 {[%emt 0:14:06]} Nd7 {[%emt 0:03:09]} 7. Bd2 {[%emt 0:01:55]} Ngf6 {[%emt 0:01:19]} 8. h3 {[%emt 0:00:00]} b6 {[%emt 0:01:08]} 9. Bc4 {[%emt 0:01:14]} O-O {[%emt 0:00:26]} 10. O-O {[%emt 0:00:00]} Bb7 {[%emt 0:02:31]} 11. Qc1 {[%emt 0:01:01]} Re8 {[%emt 0:01:18]} 12. Bh6 {[%emt 0:00:10]} Bh8 {[%emt 0:01:37]} 13. Qd2 {[%emt 0:03:11]} Qc7 {[%emt 0:03:13]} 14. Rae1 {[%emt 0:04:09]} Rad8 {[%emt 0:02:08]} 15. Qe2 {[%emt 0:04:13]} Qc8 {[%emt 0:00:40]} 16. Nd2 {[%emt 0:01:21]} e6 {[%emt 0:06:06]} 17. dxe6 {[%emt 0:02:12]} fxe6 {[%emt 0:00:00]} 18. Ba2 {[%emt 0:05:18]} Ne5 {[%emt 0:05:12]} 19. f4 {[%emt 0:10:05]} Nf7 {[%emt 0:01:24]} 20. Bg5 {[%emt 0:04:32]} Nxg5 {[%emt 0:00:39]} 21. fxg5 {[%emt 0:00:00]} Nh5 {[%emt 0:00:27]} 22. Qg4 {[%emt 0:00:00]} Bd4+ {[%emt 0:06:35]} 23. Kh1 {[%emt 0:00:00]} Bxc3 {[%emt 0:06:40]} 24. bxc3 {[%emt 0:00:00]} b5 {[%emt 0:00:00]} 25. axb5 {[%emt 0:03:52]} axb5 {[%emt 0:00:00]} 26. Rb1 {[%emt 0:03:31]} Bc6 {[%emt 0:00:00]} 27. Nf3 {[%emt 0:01:05]} Bxe4 {[%emt 0:15:36]} 28. Rxb5 {[%emt 0:03:26]} Bxc2 {[%emt 0:03:34]} 29. Re1 {[%emt 0:02:59]} Ng7 {[%emt 0:03:31]} 30. Rb2 {[%emt 0:01:49]} Bd3 {[%emt 0:00:32]} 31. Nd2 {[%emt 0:00:26]} d5 {[%emt 0:01:25]} 32. c4 {[%emt 0:00:21]} dxc4 {[%emt 0:00:28]} 33. Ne4 {[%emt 0:03:48]} Nh5 {[%emt 0:09:15]} 34. Nf6+ {[%emt 0:00:35]} Nxf6 {[%emt 0:00:00]} 35. gxf6 {[%emt 0:00:00]} Rd4 {[%emt 0:00:11]} 36. Qf3 {[%emt 0:00:00]} Kf7 {[%emt 0:03:08]} 37. Rb7+ {[%emt 0:02:57]} Rd7 {[%emt 0:00:00]} 38. Rb6 {[%emt 0:00:33]} Qa8 {[%emt 0:03:19]} 39. Qf2 {[%emt 0:01:23]} Qd5 {[%emt 0:00:00]} 40. Rb5 {[%emt 0:00:36]} Qd4 {[%emt 0:00:31]} 41. Qd2 {[%emt 0:54:43]} Kxf6 {[%emt 0:15:38]} 42. Rb6 {[%emt 0:00:00]} Kg7 {[%emt 0:04:39]} 43. Qc1 {[%emt 0:00:00]} e5 {[%emt 0:02:11]} 44. Qg5 {[%emt 0:00:00]} e4 {[%emt 0:00:25]} 45. Rc6 {[%emt 0:00:00]} Qf2 {[%emt 0:03:20]} 46. Ra1 {[%emt 0:00:00]} Qb2 {[%emt 0:00:47]} 47. Qc1 {[%emt 0:00:00]} Qxc1+ {[%emt 0:04:56]} 48. Rxc1 {[%emt 0:00:00]} e3 {[%emt 0:00:18]} 49. Rxc5 {[%emt 0:00:00]} e2 {[%emt 0:00:33]} 50. Re1 {[%emt 0:00:00]} Rf7 {[%emt 0:01:09]} 0-1

[Event "4NCL 2019-20"]
[Site "Daventry"]
[Date "2020.01.12"]
[Round "4"]
[White "Head, Louise"]
[Black "Ledger, Dave J"]
[Result "0-1"]
[ECO "D47"]
[WhiteElo "2100"]
[BlackElo "2126"]
[Annotator "ChessBase"]
[PlyCount "76"]
[EventDate "2020.01.11"]
[EventCountry "ENG"]
[SourceTitle "playchess.com"]
[Source "ChessBase"]
[SourceQuality "1"]
[TimeControl "40/6000:3000+30"]

1. d4 {[%emt 0:00:00]} Nf6 {[%emt 0:00:00]} 2. c4 {[%emt 0:00:00]} e6 {[%emt 0:00:00]} 3. Nf3 {[%emt 0:00:00]} d5 {[%emt 0:00:00]} 4. Nc3 {[%emt 0:00:00]} dxc4 {[%emt 0:00:00]} 5. e3 {[%emt 0:00:00]} a6 {[%emt 0:00:12]} 6. Bxc4 {[%emt 0:00:00]} b5 {[%emt 0:00:00]} 7. Bb3 {[%emt 0:04:59]} Bb7 {[%emt 0:01:14]} 8. a4 {[%emt 0:10:09]} b4 {[%emt 0:02:27]} 9. Ne2 {[%emt 0:01:20]} c5 {[%emt 0:07:19]} 10. O-O {[%emt 0:11:21]} Nbd7 {[%emt 0:05:48]} 11. Nf4 {[%emt 0:11:07]} Bd6 {[%emt 0:07:02]} 12. Nd3 {[%emt 0:06:15]} O-O {[%emt 0:04:10]} 13. dxc5 {[%emt 0:06:12]} Nxc5 {[%emt 0:00:00]} 14. Nxc5 {[%emt 0:04:08]} Bxc5 {[%emt 0:00:00]} 15. Qe2 {[%emt 0:01:17]} Ne4 {[%emt 0:06:32]} 16. Ne1 {[%emt 0:08:00]} Qh4 {[%emt 0:07:13]} 17. Bc2 {[%emt 0:12:10]} Rfd8 {[%emt 0:07:24]} 18. f3 {[%emt 0:02:51]} Nf6 {[%emt 0:01:37]} 19. g3 {[%emt 0:01:32]} Qh5 {[%emt 0:01:28]} 20. Nd3 {[%emt 0:00:00]} Bd6 {[%emt 0:02:21]} 21. g4 {[%emt 0:04:56]} Qa5 {[%emt 0:05:06]} 22. e4 {[%emt 0:00:08]} Rac8 {[%emt 0:05:05]} 23. Be3 {[%emt 0:00:32]} Nd7 {[%emt 0:01:26]} 24. Rac1 {[%emt 0:03:51]} Nc5 {[%emt 0:06:39]} 25. b3 {[%emt 0:00:05]} Nxd3 {[%emt 0:00:49]} 26. Bxd3 {[%emt 0:00:00]} Rc3 {[%emt 0:00:01]} 27. Rxc3 {[%emt 0:00:08]} bxc3 {[%emt 0:00:00]} 28. Bc4 {[%emt 0:00:12]} Bc5 {[%emt 0:00:57]} 29. Kg2 {[%emt 0:03:16]} Bxe3 {[%emt 0:00:23]} 30. Qxe3 {[%emt 0:00:00]} h5 {[%emt 0:01:19]} 31. Rf2 {[%emt 0:00:19]} hxg4 {[%emt 0:00:23]} 32. fxg4 {[%emt 0:01:04]} Qe5 {[%emt 0:00:12]} 33. Re2 {[%emt 0:00:09]} Qxe4+ {[%emt 0:02:23]} 34. Kf2 {[%emt 0:01:21]} Qg2+ {[%emt 0:02:11]} 35. Ke1 {[%emt 0:00:00]} Qh1+ {[%emt 0:00:11]} 36. Kf2 {[%emt 0:00:00]} c2 {[%emt 0:00:05]} 37. Bd5 {[%emt 0:00:40]} Qxd5 {[%emt 0:00:20]} 38. Qc1 {[%emt 0:00:47]} Qg2+ {[%emt 0:00:00]} 0-1

[Event "4NCL 2019-20"]
[Site "Daventry"]
[Date "2020.01.12"]
[Round "4"]
[White "Cumbers, Paul"]
[Black "Varney, Zoe"]
[Result "1-0"]
[ECO "C54"]
[WhiteElo "2087"]
[BlackElo "2004"]
[Annotator "NA"]
[PlyCount "107"]
[EventDate "2020.01.11"]
[EventCountry "ENG"]
[SourceTitle "playchess.com"]
[Source "ChessBase"]
[SourceQuality "1"]
[TimeControl "40/6000:3000+30"]

1. e4 {[%emt 0:00:00]} e5 {[%emt 0:00:00]} 2. Bc4 {[%emt 0:00:00]} Nc6 {[%emt 0:00:00]} 3. Nf3 {[%emt 0:00:00]} Bc5 {[%emt 0:00:00]} 4. O-O {[%emt 0:00:00]} Nf6 {[%emt 0:00:35]} 5. d3 {[%emt 0:00:00]} d6 {[%emt 0:00:00]} 6. c3 {[%emt 0:00:09]} Bg4 {[%emt 0:00:51]} 7. h3 {[%emt 0:01:02]} Bh5 {[%emt 0:00:33]} 8. Re1 {[%emt 0:12:24] C54: Giuoco Piano: 4 c3 Nf6, main lines with 5 d4 and 5 d3} h6 {[%emt 0:08:13]} 9. g4 {[%emt 0:11:46]} (9. b4 Bb6 10. a4 a5 11. b5 Ne7 12. g4 Bg6 13. Nbd2 Qd7 {0-1 (36) Sadzikowski,D (2584)-Valsecchi,A (2501) Katowice 2017}) 9... Bg6 {[%emt 0:19:28]} 10. Be3 $146 {[%emt 0:09:28]} ({Predecessor:} 10. d4 Bb6 11. d5 Na5 12. Bd3 O-O 13. b4 Nc4 14. Bxc4 Bxe4 15. Nbd2 Bxd5 16. Bxd5 Nxd5 {½-½ (44) Nosal,M-Harass Tosunyan,A Waldshut Tiengen 2014}) 10... Bxe3 {[%emt 0:09:26]} 11. Rxe3 {[%emt 0:00:05]} h5 {[%emt 0:01:22]} 12. g5 {[%emt 0:00:02]} Nh7 {[%emt 0:00:04]} 13. h4 {[%emt 0:02:23]} f6 {[%emt 0:00:25]} 14. gxf6 {[%emt 0:01:20]} Qxf6 {[%emt 0:01:59]} 15. Qf1 {[%emt 0:01:47]} O-O-O {[%emt 0:04:56]} 16. Qh3+ {[%emt 0:02:02]} Kb8 {[%emt 0:00:00]} 17. Nbd2 {[%emt 0:06:19]} Be8 {[%emt 0:08:11]} 18. Qg3 {[%emt 0:09:54]} Na5 {[%emt 0:06:56]} 19. Ng5 {[%emt 0:02:43]} Nxg5 {[%emt 0:04:07]} 20. hxg5 {[%emt 0:01:42]} Qg6 {[%emt 0:02:24]} 21. f4 {[%emt 0:14:29]} h4 {[%emt 0:06:28]} 22. f5 {[%emt 0:01:12]} hxg3 {[%emt 0:00:59]} 23. fxg6 {[%emt 0:00:00]} Rh2 {[%emt 0:01:12]} 24. Rd1 {[%emt 0:07:18]} Bxg6 {[%emt 0:02:39]} 25. Bd5 {[%emt 0:04:01]} Rdh8 {[%emt 0:06:08]} 26. Nf1 {[%emt 0:00:00]} Rxb2 {[%emt 0:01:38]} 27. Rxg3 {[%emt 0:00:00]} c6 {[%emt 0:02:23]} 28. Be6 {[%emt 0:00:00]} Re8 {[%emt 0:00:00]} 29. Bf5 {[%emt 0:00:21]} Bf7 {[%emt 0:05:12]} 30. Rg2 {[%emt 0:00:00]} Rxg2+ {[%emt 0:00:33]} 31. Kxg2 {[%emt 0:00:00]} Rh8 {[%emt 0:00:00]} 32. g6 {[%emt 0:00:21]} Be8 {[%emt 0:00:14]} 33. Ne3 {[%emt 0:01:08]} Kc7 {[%emt 0:00:00]} 34. d4 {[%emt 0:01:03]} exd4 {[%emt 0:00:03]} 35. cxd4 {[%emt 0:00:24]} Rh5 {[%emt 0:00:07]} 36. Kf3 {[%emt 0:00:52]} Kd8 {[%emt 0:01:45]} 37. Kf4 {[%emt 0:02:06]} Ke7 {[%emt 0:00:00]} 38. e5 {[%emt 0:00:09]} Bd7 {[%emt 0:00:00]} 39. Bxd7 {[%emt 0:00:15]} Kxd7 {[%emt 0:00:00]} 40. Nf5 {[%emt 0:00:00]} Rh2 {[%emt 0:00:00]} 41. Nxg7 {[%emt 0:07:07]} Rg2 {[%emt 0:05:27]} 42. Kf5 {[%emt 0:10:07]} (42. e6+ $142 Ke7 43. Nf5+ Kxe6 44. Nh4 Rxg6 45. Nxg6) 42... Nc4 $18 {[%emt 0:00:16]} 43. Re1 {[%emt 0:12:28]} dxe5 {[%emt 0:03:29]} 44. dxe5 {[%emt 0:00:10]} Nb6 {[%emt 0:00:27]} 45. Nh5 {[%emt 0:06:27]} Nd5 {[%emt 0:02:07]} 46. Nf6+ {[%emt 0:00:21]} Ke7 {[%emt 0:01:23]} 47. a4 {[%emt 0:08:07]} Rf2+ {[%emt 0:03:21]} 48. Kg5 {[%emt 0:00:15]} Rg2+ {[%emt 0:02:46]} 49. Ng4 {[%emt 0:01:41]} Kf8 {[%emt 0:02:01]} 50. e6 {[%emt 0:02:21]} Ne7 {[%emt 0:01:40]} 51. Rf1+ {[%emt 0:00:27]} Kg8 {[%emt 0:00:10]} 52. Rf4 {[%emt 0:05:04]} b5 {[%emt 0:01:05]} 53. Kh6 {[%emt 0:00:45]} Nd5 {[%emt 0:01:14]} 54. g7 {[%emt 0:01:18]} 1-0

[Event "4NCL 2019-20"]
[Site "Daventry"]
[Date "2020.01.12"]
[Round "4"]
[White "Makepeace, Philip J"]
[Black "Galyas, Miklos"]
[Result "0-1"]
[ECO "A21"]
[WhiteElo "2076"]
[BlackElo "2469"]
[Annotator "ChessBase"]
[PlyCount "52"]
[EventDate "2020.01.11"]
[EventCountry "ENG"]
[SourceTitle "playchess.com"]
[Source "ChessBase"]
[SourceQuality "1"]
[TimeControl "40/6000:3000+30"]

1. c4 {[%emt 0:00:00]} f5 {[%emt 0:00:00]} 2. Nc3 {[%emt 0:00:00]} Nf6 {[%emt 0:00:00]} 3. Nf3 {[%emt 0:00:00]} g6 {[%emt 0:00:00]} 4. g3 {[%emt 0:00:00]} Bg7 {[%emt 0:00:00]} 5. Bg2 {[%emt 0:00:00]} O-O {[%emt 0:00:00]} 6. O-O {[%emt 0:00:00]} d6 {[%emt 0:00:00]} 7. d3 {[%emt 0:00:00]} e5 {[%emt 0:00:00]} 8. Bg5 {[%emt 0:00:00]} h6 {[%emt 0:01:33]} 9. Bxf6 {[%emt 0:00:00]} Qxf6 {[%emt 0:00:23]} 10. Rc1 {[%emt 0:00:40]} Na6 {[%emt 0:02:39]} 11. a3 {[%emt 0:05:09]} c6 {[%emt 0:00:35]} 12. b4 {[%emt 0:00:41]} Bd7 {[%emt 0:03:51]} 13. Nd2 {[%emt 0:02:27]} Rab8 {[%emt 0:17:41]} 14. Nb3 {[%emt 0:07:42]} Nc7 {[%emt 0:00:40]} 15. Na5 {[%emt 0:03:34]} Qd8 {[%emt 0:02:27]} 16. Qd2 {[%emt 0:04:03]} Ne6 {[%emt 0:01:27]} 17. Nb1 {[%emt 0:05:11]} f4 {[%emt 0:02:42]} 18. Nc3 {[%emt 0:11:01]} Nd4 {[%emt 0:12:37]} 19. e3 {[%emt 0:06:49]} f3 {[%emt 0:00:00]} 20. exd4 {[%emt 0:00:00]} fxg2 {[%emt 0:00:00]} 21. Kxg2 {[%emt 0:00:00]} exd4 {[%emt 0:00:12]} 22. Ne4 {[%emt 0:00:00]} b6 {[%emt 0:01:07]} 23. Nb3 {[%emt 0:00:00]} d5 {[%emt 0:01:26]} 24. cxd5 {[%emt 0:02:25]} cxd5 {[%emt 0:00:00]} 25. Qa2 {[%emt 0:01:08]} dxe4 {[%emt 0:00:00]} 26. Nxd4+ {[%emt 0:00:00]} Kh7 {[%emt 0:00:00]} 0-1

[Event "4NCL 2019-20"]
[Site "Daventry"]
[Date "2020.01.12"]
[Round "4"]
[White "Latham, David"]
[Black "Benhamida, Aisha"]
[Result "1-0"]
[ECO "E65"]
[WhiteElo "2064"]
[BlackElo "1577"]
[Annotator "NA"]
[PlyCount "93"]
[EventDate "2020.01.11"]
[EventCountry "ENG"]
[SourceTitle "playchess.com"]
[Source "ChessBase"]
[SourceQuality "1"]
[TimeControl "40/6000:3000+30"]

1. d4 {[%emt 0:00:00]} Nf6 {[%emt 0:00:00]} 2. Nf3 {[%emt 0:00:00]} g6 {[%emt 0:00:00]} 3. g3 {[%emt 0:00:00]} Bg7 {[%emt 0:00:00]} 4. Bg2 {[%emt 0:00:00]} O-O {[%emt 0:00:00]} 5. c4 {[%emt 0:00:00]} d6 {[%emt 0:00:00]} 6. Nc3 {[%emt 0:00:00]} Nbd7 {[%emt 0:00:00]} 7. O-O {[%emt 0:00:00]} c5 {[%emt 0:00:00]} 8. d5 {[%emt 0:00:05]} Ng4 {[%emt 0:00:00]} 9. Qc2 {[%emt 0:05:01]} Nge5 {[%emt 0:00:14]} 10. Nd2 {[%emt 0:05:57]} Nb6 {[%emt 0:01:14]} 11. b3 {[%emt 0:00:51]} a6 {[%emt 0:10:46]} 12. h3 {[%emt 0:03:43]} Re8 {[%emt 0:08:16]} 13. a4 {[%emt 0:03:07]} a5 {[%emt 0:01:51]} 14. Bb2 {[%emt 0:04:28]} Ned7 {[%emt 0:04:16]} 15. Rad1 {[%emt 0:03:59]} Nf6 {[%emt 0:02:43]} 16. e4 {[%emt 0:02:55]} Bd7 {[%emt 0:01:25]} 17. Nf3 {[%emt 0:04:39]} Qc8 {[%emt 0:02:27]} 18. Kh2 {[%emt 0:00:49]} e6 {[%emt 0:02:19]} 19. dxe6 {[%emt 0:01:19]} Rxe6 {[%emt 0:02:37]} 20. Ng5 {[%emt 0:01:03]} Re5 {[%emt 0:10:01]} 21. f4 {[%emt 0:00:33]} Rxg5 {[%emt 0:00:17]} 22. fxg5 {[%emt 0:00:00]} Nh5 {[%emt 0:00:00]} 23. Ne2 {[%emt 0:00:42]} Qc7 {[%emt 0:00:00]} 24. Bxg7 {[%emt 0:00:05]} Nxg7 {[%emt 0:00:00]} 25. Qd3 {[%emt 0:00:46]} Ne8 {[%emt 0:00:40]} 26. Rf2 {[%emt 0:02:21]} Rd8 {[%emt 0:03:50]} 27. Nf4 {[%emt 0:03:40]} Bc6 {[%emt 0:06:53]} 28. e5 {[%emt 0:04:30]} Bxg2 {[%emt 0:00:27]} 29. Rxg2 {[%emt 0:00:00]} Qe7 {[%emt 0:01:02]} 30. Nd5 {[%emt 0:04:53]} Nxd5 {[%emt 0:05:12]} 31. Qxd5 {[%emt 0:00:00]} Qxg5 {[%emt 0:08:42]} 32. exd6 {[%emt 0:01:50]} Qxd5 {[%emt 0:02:37]} 33. Rxd5 {[%emt 0:00:00]} Rxd6 {[%emt 0:00:00]} 34. Re2 {[%emt 0:00:47]} Re6 {[%emt 0:00:54]} 35. Rxe6 {[%emt 0:00:00]} fxe6 {[%emt 0:00:32]} 36. Rd8 {[%emt 0:00:00]} Kf8 {[%emt 0:00:23]} 37. Rb8 {[%emt 0:00:00]} h5 {[%emt 0:01:44]} 38. Rxb7 {[%emt 0:00:00]} Nd6 {[%emt 0:00:29]} 39. Ra7 {[%emt 0:00:00]} Ne4 {[%emt 0:04:40]} 40. Rxa5 {[%emt 0:00:00]} Nd2 {[%emt 0:00:00]} 41. Rb5 {[%emt 0:00:52]} e5 {[%emt 0:01:15]} 42. Kg2 {[%emt 0:53:33]} e4 {[%emt 0:49:46]} 43. Kf2 {[%emt 0:00:20]} Nf3 {[%emt 0:01:17]} 44. a5 {[%emt 0:00:16]} Nd4 {[%emt 0:00:40]} 45. a6 {[%emt 0:00:12]} Ne6 {[%emt 0:03:19]} 46. a7 {[%emt 0:00:26]} Nc7 {[%emt 0:00:13]} 47. Rb7 {[%emt 0:00:17]} 1-0